Workbook

Sheet Tabulka výsledných hodnot
A1: Veličina | B1: symbol | C1: jednotka | D1: Hodnota
A2: Převodový poměr absolutní | B2: i | C2: [-] | D2: 0.8 | E2: 0.9429522752 | F2: 1.102347418 | G2: 1.281195517 | H2: 1.483289125 | I2: 1.713475177 | J2: 1.97804878 | K2: 2.285337727 | L2: 2.646594982 | M2: 3.07740668 | N2: 3.6
A3: Průměr planetového kola | B3: Dp | C3: [mm] | D3: 175 | E3: 175 | F3: 175 | G3: 175 | H3: 175 | I3: 175 | J3: 175 | K3: 175 | L3: 175 | M3: 175 | N3: 175
A4: Průměr korunového kola | B4: Dk | C4: [mm] | D4: -320 | E4: -320 | F4: -320 | G4: -320 | H4: -320 | I4: -320 | J4: -320 | K4: -320 | L4: -320 | M4: -320 | N4: -320
A5: Průmer satelitu pod planetou | B5: Dsp | C5: [mm] | D5: 44.13043478 | E5: 49.33318078 | F5: 54.53592677 | G5: 59.73867277 | H5: 64.94141876 | I5: 70.14416476 | J5: 75.34691076 | K5: 80.54965675 | L5: 85.75240275 | M5: 90.95514874 | N5: 96.15789474
A6: Průměr satelitu pod korunou | B6: Dsk | C6: [mm] | D6: 100.8695652 | E6: 95.66681922 | F6: 90.46407323 | G6: 85.26132723 | H6: 80.05858124 | I6: 74.85583524 | J6: 69.65308924 | K6: 64.45034325 | L6: 59.24759725 | M6: 54.04485126 | N6: 48.84210526
A7: Vzdálenost satelitu od osy variátoru | B7: Ls | C7: [mm] | D7: 109.5652174 | E7: 112.1665904 | F7: 114.7679634 | G7: 117.3693364 | H7: 119.9707094 | I7: 122.5720824 | J7: 125.1734554 | K7: 127.7748284 | L7: 130.3762014 | M7: 132.9775744 | N7: 135.5789474
A8: Axiální poloha planetových kol | B8: La | C8: [mm] | D8: 0 | E8: 9.708456197 | F8: 19.41691239 | G8: 29.12536859 | H8: 38.83382479 | I8: 48.54228098 | J8: 58.25073718 | K8: 67.95919338 | L8: 77.66764958 | M8: 87.37610577 | N8: 97.08456197
A9: Převodový poměr skutečný | B9: Is | C9: [-] | D9: -0.8 | E9: -0.9429522752 | F9: -1.102347418 | G9: -1.281195517 | H9: -1.483289125 | I9: -1.713475177 | J9: -1.97804878 | K9: -2.285337727 | L9: -2.646594982 | M9: -3.07740668 | N9: -3.6
A11: Otáčky vstupní hřídele | B11: nin | C11: [ot/min] | D11: 1450 | E11: 1450 | F11: 1450 | G11: 1450 | H11: 1450 | I11: 1450 | J11: 1450 | K11: 1450 | L11: 1450 | M11: 1450 | N11: 1450
A12: Otáčky výstupní hřídele | B12: nout | C12: [ot/min] | D12: 1812.5 | E12: 1537.723635 | F12: 1315.374787 | G12: 1131.755443 | H12: 977.5572246 | I12: 846.2334437 | J12: 733.0456227 | K12: 634.4795271 | L12: 547.8737811 | M12: 471.1759448 | N12: 402.7777778
A13: Otáčky satelitů | B13: ns | C13: [ot/min] | D13: 5750 | E13: 5143.596987 | F13: 4652.896082 | G13: 4247.667185 | H13: 3907.367668 | I13: 3617.549669 | J13: 3367.755857 | K13: 3150.230681 | L13: 2959.100758 | M13: 2789.836568 | N13: 2638
A14: Obvodová rychlost planetového kola | B14: vop | C14: [m/s] | D14: 13.28631893 | E14: 13.28631893 | F14: 13.28631893 | G14: 13.28631893 | H14: 13.28631893 | I14: 13.28631893 | J14: 13.28631893 | K14: 13.28631893 | L14: 13.28631893 | M14: 13.28631893 | N14: 13.28631893
A15: Obvodová rychlost korunového kola | B15: vok | C15: [m/s] | D15: 30.36872898 | E15: 25.76480679 | F15: 22.03931609 | G15: 18.96274446 | H15: 16.37912851 | I15: 14.17877744 | J15: 12.2822973 | K15: 10.63080651 | L15: 9.179713312 | M15: 7.89462873 | N15: 6.748606441
A16: Poloměr zaoblení planetového kola | B16: R1' | C16: [mm] | D16: 200 | E16: 200 | F16: 200 | G16: 200 | H16: 200 | I16: 200 | J16: 200 | K16: 200 | L16: 200 | M16: 200 | N16: 200
A17: Poloměr zaobleni korunového kola | B17: R3' | C17: [mm] | D17: 200 | E17: 200 | F17: 200 | G17: 200 | H17: 200 | I17: 200 | J17: 200 | K17: 200 | L17: 200 | M17: 200 | N17: 200
A19: Kontakt Planetové kolo satelit
A20: Maximální kontaktní tlak | B20: Pmax | C20: [Mpa] | D20: 1555
A21: Modul pružnosti planetového kola | B21: E1 | C21: [Mpa] | D21: 206000 | E21: 206000 | F21: 206000 | G21: 206000 | H21: 206000 | I21: 206000 | J21: 206000 | K21: 206000 | L21: 206000 | M21: 206000 | N21: 206000
A22: Modul pružnosti kuželu satelitu | B22: E2 | C22: [Mpa] | D22: 206000 | E22: 206000 | F22: 206000 | G22: 206000 | H22: 206000 | I22: 206000 | J22: 206000 | K22: 206000 | L22: 206000 | M22: 206000 | N22: 206000
A23: Poisson planetového kola | B23: ϑ1 | C23: [-] | D23: 0.3 | E23: 0.3 | F23: 0.3 | G23: 0.3 | H23: 0.3 | I23: 0.3 | J23: 0.3 | K23: 0.3 | L23: 0.3 | M23: 0.3 | N23: 0.3
A24: Poisson kužele satelitu | B24: ϑ2 | C24: [-] | D24: 0.3 | E24: 0.3 | F24: 0.3 | G24: 0.3 | H24: 0.3 | I24: 0.3 | J24: 0.3 | K24: 0.3 | L24: 0.3 | M24: 0.3 | N24: 0.3
A25: Maximální normálová přítlačná síla | B25: FN1 | C25: [N] | D25: 3557.390406 | E25: 9319.185274 | F25: 10242.85828 | G25: 11134.68577 | H25: 11995.08117 | I25: 12824.76367 | J25: 13624.64539 | K25: 14395.75447 | L25: 15139.18215 | M25: 15856.04639 | N25: 16547.46675
A26: Kontakt satelit korunové kolo
A27: Modul pružnosti kuželu satelitu | B27: E2 | C27: [Mpa] | D27: 206000 | E27: 206000 | F27: 206000 | G27: 206000 | H27: 206000 | I27: 206000 | J27: 206000 | K27: 206000 | L27: 206000 | M27: 206000 | N27: 206000
A28: Modul pružnosti korunového kola | B28: E3 | C28: [Mpa] | D28: 206000 | E28: 206000 | F28: 206000 | G28: 206000 | H28: 206000 | I28: 206000 | J28: 206000 | K28: 206000 | L28: 206000 | M28: 206000 | N28: 206000
A29: Poisson kužele satelitu | B29: ϑ2 | C29: [-] | D29: 0.3 | E29: 0.3 | F29: 0.3 | G29: 0.3 | H29: 0.3 | I29: 0.3 | J29: 0.3 | K29: 0.3 | L29: 0.3 | M29: 0.3 | N29: 0.3
A30: Poisson korunového kola | B30: ϑ3 | C30: [-] | D30: 0.3 | E30: 0.3 | F30: 0.3 | G30: 0.3 | H30: 0.3 | I30: 0.3 | J30: 0.3 | K30: 0.3 | L30: 0.3 | M30: 0.3 | N30: 0.3
A31: Maximální normálová přítlačná síla | B31: FN2 | C31: [N] | D31: 20556.10514 | E31: 18811.2508 | F31: 17152.65811 | G31: 15576.52217 | H31: 14079.42615 | I31: 12658.32004 | J31: 11310.5058 | K31: 10033.62973 | L31: 8825.682842 | M31: 7685.011233 | N31: 6610.339515
A32: Výsledné kontakty
A33: Skutečná síla - linearizace | B33: FN | C33: [N] | D33: 3557.390406 | E33: 3862.685316 | F33: 4167.980227 | G33: 4473.275138 | H33: 4778.570049 | I33: 5083.86496 | J33: 5389.159871 | K33: 5694.454782 | L33: 5999.749693 | M33: 6305.044604 | N33: 6610.339515
A34: Tlak v doteku palentové kolo - satelit | B34: P1 | C34: [Mpa] | D34: 1555 | E34: 1549.198516 | F34: 1537.560975 | G34: 1529.031435 | H34: 1522.903662 | I34: 1518.667501 | J34: 1515.944923 | K34: 1514.449693 | L34: 1513.961037 | M34: 1514.305925 | N34: 1515.34683
A35: Tlak v doteku satelit - korunové kolo | B35: P2 | C35: [Mpa] | D35: 866.0674384 | E35: 916.8575461 | F35: 969.7609655 | G35: 1025.271554 | H35: 1083.952969 | I35: 1146.468945 | J35: 1213.622821 | K35: 1286.411992 | L35: 1366.10616 | M35: 1454.36428 | N35: 1553.416372
A36: Hlavní polosa elipsy doteku planeta | B36: a1 | C36: [mm] | D36: 2.349526056 | E36: 2.381880114 | F36: 2.420295326 | G36: 2.457369054 | H36: 2.49318904 | I36: 2.52784236 | J36: 2.561411619 | K36: 2.593973414 | L36: 2.625597928 | M36: 2.656349074 | N36: 2.686284895
A37: Vedlejší polosa elipsy doteku planeta | B37: b1 | C37: [mm] | D37: 0.4657618294 | E37: 0.5006362102 | F37: 0.5355715292 | G37: 0.5692141053 | H37: 0.6016727217 | I37: 0.6330403432 | J37: 0.663397569 | K37: 0.6928150905 | L37: 0.7213554989 | M37: 0.7490746508 | N37: 0.7760227252
A38: Hlavní polosa elipsy doteku koruna | B38: a2 | C38: [mm] | D38: 1.952502317 | E38: 2.02835054 | F38: 2.103180296 | G38: 2.177405103 | H38: 2.251416723 | I38: 2.325604018 | J38: 2.400371272 | K38: 2.476158293 | L38: 2.553464904 | M38: 2.63288358 | N38: 2.715146125
A39: Vedlejší polosa elipsy doteku koruna | B39: b2 | C39: [mm] | D39: 1.004453911 | E39: 0.9917134561 | F39: 0.9757222301 | G39: 0.9567296205 | H39: 0.9349177019 | I39: 0.9104114166 | J39: 0.8832846145 | K39: 0.8535626788 | L39: 0.821221938 | M39: 0.7861855565 | N39: 0.7483149701
A40: Axiální síla na 1 kolo | B40: Fa | C40: [N] | D40: 3682.881551 | E40: 3998.946101 | F40: 4315.01065 | G40: 4631.075199 | H40: 4947.139749 | I40: 5263.204298 | J40: 5579.268847 | K40: 5895.333397 | L40: 6211.397946 | M40: 6527.462495 | N40: 6843.527045
A41: Teplota oleje | C41: [°C] | D41: 50
A42: Spinová rychlost planeta - satelit | B42: ωs1 | C42: [rad/s] | D42: 78.60005437 | E42: 78.60005437 | F42: 78.60005437 | G42: 78.60005437 | H42: 78.60005437 | I42: 78.60005437 | J42: 78.60005437 | K42: 78.60005437 | L42: 78.60005437 | M42: 78.60005437 | N42: 78.60005437
A43: Spinová rychlost koruna - satelit | B43: ωs2 | C43: [rad/s] | D43: 98.25006796 | E43: 83.35528365 | F43: 71.30243433 | G43: 61.34899267 | H43: 52.99038 | I43: 45.87172047 | J43: 39.73615572 | K43: 34.39318988 | L43: 29.69855792 | M43: 25.54100337 | N43: 21.83334844
A44: Součinitel tření planeta - satelit | B44: μ1max | C44: [-] | D44: 0.09922897228 | E44: 0.09890245478 | F44: 0.09845929769 | G44: 0.09806931651 | H44: 0.09772316385 | I44: 0.09741357948 | J44: 0.09713483735 | K44: 0.0968823578 | L44: 0.0966524314 | M44: 0.0964420191 | N44: 0.09624860529
A45: Součinitel tření koruna - satelit | B45: μ2max | C45: [-] | D45: 0.07623217835 | E45: 0.08010391827 | F45: 0.08360566427 | G45: 0.08682357731 | H45: 0.08982317994 | I45: 0.09265465564 | J45: 0.09535654564 | K45: 0.09795806852 | L45: 0.1004802039 | M45: 0.1029354466 | N45: 0.1053257371
A47: Počet satelitů | B47: xs | C47: [-] | D47: 4
A48: Moment vstupní hříídel | B48: Min* | C48: [Nm] | D48: 247.0973358 | E48: 267.4203419 | F48: 287.2634842 | G48: 307.0837248 | H48: 326.8838887 | I48: 346.6662384 | J48: 366.4326173 | K48: 386.184544 | L48: 405.923277 | M48: 425.6498625 | N48: 445.3651712
A49: Moment korunová kola | B49: Mout* | C49: [Nm] | D49: 347.1201534 | E49: 396.052773 | F49: 446.0374471 | G49: 497.1337598 | H49: 549.4097375 | I49: 602.9360092 | J49: 657.7813366 | K49: 714.0067734 | L49: 771.6557728 | M49: 830.7361051 | N49: 891.1857691
A50: Přepočet momentu z korun na vstup | B50: Meout | C50: [Nm] | D50: 433.9001918 | E50: 420.0135928 | F50: 404.6251118 | G50: 388.023337 | H50: 370.3996263 | I50: 351.8790451 | J50: 332.5405031 | K50: 312.4294345 | L50: 291.5654938 | M50: 269.9468064 | N50: 247.5516025
A51: Krouticí moment maximální vstupní | B51: Min | C51: [Nm] | D51: 247.0973358 | E51: 267.4203419 | F51: 287.2634842 | G51: 307.0837248 | H51: 326.8838887 | I51: 346.6662384 | J51: 332.5405031 | K51: 312.4294345 | L51: 291.5654938 | M51: 269.9468064 | N51: 247.5516025
A52: Krouticí moment maximální výstupní | B52: Mout | C52: [Nm] | D52: 197.6778686 | E52: 252.1646198 | F52: 316.66416 | G52: 393.4342915 | H52: 484.8633172 | I52: 594.0039943 | J52: 657.7813366 | K52: 714.0067734 | L52: 771.6557728 | M52: 830.7361051 | N52: 891.1857691
A53: Maximálni přenositelný výkon | B53: P | C53: [W] | D53: 37520.16011 | E53: 40606.07944 | F53: 43619.13449 | G53: 46628.71207 | H53: 49635.24113 | I53: 52639.06521 | J53: 50494.16207 | K53: 47440.42411 | L53: 44272.36731 | M53: 40989.70701 | N53: 37589.13763

Sheet Výpočet
A1: vstupní parametry - vrcholový úhel satelitu 30° | D1: Jednotka | E1: 0.7
C2: poloha | D2: [-] | E2: 1 | F2: 2 | G2: 3 | H2: 4 | I2: 5 | J2: 6 | K2: 7 | L2: 8 | M2: 9 | N2: 10 | O2: 11
B3: parametry | C3: převodový poměr - rozsah | D3: [-] | E3: 0.8 | O3: 3.6
C4: průměr centrál | D4: [mm] | E4: 175 | F4: =E4 -> 175 | G4: =F4 -> 175 | H4: 175 | I4: 175 | J4: 175 | K4: 175 | L4: 175 | M4: 175 | N4: 175 | O4: 175
C5: průměr koruna | D5: [mm] | E5: -320 | F5: =E5 -> -320 | G5: =F5 -> -320 | H5: -320 | I5: -320 | J5: -320 | K5: -320 | L5: -320 | M5: -320 | N5: -320 | O5: -320
C6: satelit pod planetou | D6: [mm] | E6: =(E3*E4*(ABS(E5)-E4))/(ABS(E5)*(1+E3*E4/ABS(E5))) -> 44.13043478 | F6: =($O$6-$E$6)/10*E2+$E$6 -> 49.33318078 | G6: 54.53592677 | H6: 59.73867277 | I6: 64.94141876 | J6: 70.14416476 | K6: 75.34691076 | L6: 80.54965675 | M6: 85.75240275 | N6: 90.95514874 | O6: =(O3*O4*(ABS(O5)-O4))/(ABS(O5)*(1+O3*O4/ABS(O5))) -> 96.15789474
C7: satelit pod korunou | D7: [mm] | E7: =ABS(E5)-E4-E6 -> 100.8695652 | F7: 95.66681922 | G7: 90.46407323 | H7: 85.26132723 | I7: 80.05858124 | J7: 74.85583524 | K7: 69.65308924 | L7: 64.45034325 | M7: 59.24759725 | N7: 54.04485126 | O7: 48.84210526
C8: poloha satelitu od stredu | D8: [mm] | E8: =E4/2+E6/2 -> 109.5652174 | F8: 112.1665904 | G8: 114.7679634 | H8: 117.3693364 | I8: 119.9707094 | J8: 122.5720824 | K8: 125.1734554 | L8: 127.7748284 | M8: 130.3762014 | N8: 132.9775744 | O8: 135.5789474
C9: poloha axiální | D9: [mm] | E9: 0 | F9: =(F8-E8)/TAN(15*PI()/180)+E9 -> 9.708456197 | G9: =(G8-F8)/TAN(15*PI()/180)+F9 -> 19.41691239 | H9: 29.12536859 | I9: 38.83382479 | J9: 48.54228098 | K9: 58.25073718 | L9: 67.95919338 | M9: 77.66764958 | N9: 87.37610577 | O9: 97.08456197
C10: převodový poměr | D10: [-] | E10: =1/(E4/E6*E7/E5) -> -0.8 | F10: -0.9429522752 | G10: -1.102347418 | H10: -1.281195517 | I10: -1.483289125 | J10: -1.713475177 | K10: -1.97804878 | L10: -2.285337727 | M10: -2.646594982 | N10: -3.07740668 | O10: -3.6
C11: přvodový poměr 2 | D11: [-] | E11: =ABS(E10) -> 0.8 | F11: =ABS(F10) -> 0.9429522752 | G11: 1.102347418 | H11: 1.281195517 | I11: 1.483289125 | J11: 1.713475177 | K11: 1.97804878 | L11: 2.285337727 | M11: 2.646594982 | N11: 3.07740668 | O11: 3.6
C12: otáčky vstup | D12: [ot/min] | E12: 1450 | F12: =E12 -> 1450 | G12: =F12 -> 1450 | H12: 1450 | I12: 1450 | J12: 1450 | K12: 1450 | L12: 1450 | M12: 1450 | N12: 1450 | O12: 1450
C13: otáčky výstup | D13: [ot/min] | E13: =E12/E11 -> 1812.5 | F13: =F12/F11 -> 1537.723635 | G13: =G12/G11 -> 1315.374787 | H13: 1131.755443 | I13: 977.5572246 | J13: 846.2334437 | K13: 733.0456227 | L13: 634.4795271 | M13: 547.8737811 | N13: 471.1759448 | O13: 402.7777778
C14: otáčky satelitů | D14: [ot/min] | E14: =E12*E4/E6 -> 5750 | F14: 5143.596987 | G14: 4652.896082 | H14: 4247.667185 | I14: 3907.367668 | J14: 3617.549669 | K14: 3367.755857 | L14: 3150.230681 | M14: 2959.100758 | N14: 2789.836568 | O14: 2638.888889
C15: rychlost centrál | D15: [m/s] | E15: =PI()*E4/1000*E12/60 -> 13.28631893 | F15: 13.28631893 | G15: 13.28631893 | H15: 13.28631893 | I15: 13.28631893 | J15: 13.28631893 | K15: 13.28631893 | L15: 13.28631893 | M15: 13.28631893 | N15: 13.28631893 | O15: 13.28631893
C16: rychlost koruna | D16: [m/s] | E16: =PI()*ABS(E5)/1000*E13/60 -> 30.36872898 | F16: 25.76480679 | G16: 22.03931609 | H16: 18.96274446 | I16: 16.37912851 | J16: 14.17877744 | K16: 12.2822973 | L16: 10.63080651 | M16: 9.179713312 | N16: 7.89462873 | O16: 6.748606441
C17: zaoblení central | D17: [mm] | E17: 200 | F17: =E17 -> 200 | G17: =F17 -> 200 | H17: 200 | I17: 200 | J17: 200 | K17: 200 | L17: 200 | M17: 200 | N17: 200 | O17: 200
C18: zaobleni koruna | D18: [mm] | E18: 200 | F18: =E18 -> 200 | G18: =F18 -> 200 | H18: 200 | I18: 200 | J18: 200 | K18: 200 | L18: 200 | M18: 200 | N18: 200 | O18: 200
B19: kontaktní tlaky
B21: planety | C21: p max | D21: [MPa] | E21: 1555
C22: E centrál | D22: [MPa] | E22: 206000 | F22: 210000 | G22: =F22 -> 210000 | H22: 210000 | I22: 210000 | J22: 210000 | K22: 210000 | L22: 210000 | M22: 210000 | N22: 210000 | O22: 210000
C23: E satelit | D23: [MPa] | E23: 206000 | F23: =E23 -> 206000 | G23: =F23 -> 206000 | H23: 206000 | I23: 206000 | J23: 206000 | K23: 206000 | L23: 206000 | M23: 206000 | N23: 206000 | O23: 206000
C24: poisson cental | D24: [-] | E24: 0.3 | F24: =E24 -> 0.3 | G24: =F24 -> 0.3 | H24: 0.3 | I24: 0.3 | J24: 0.3 | K24: 0.3 | L24: 0.3 | M24: 0.3 | N24: 0.3 | O24: 0.3
C25: poisson satelit | D25: [-] | E25: 0.3 | F25: =E25 -> 0.3 | G25: =F25 -> 0.3 | H25: 0.3 | I25: 0.3 | J25: 0.3 | K25: 0.3 | L25: 0.3 | M25: 0.3 | N25: 0.3 | O25: 0.3
C26: maximální přítlačná síla | D26: [N] | E26: =hertz(E22,E23,E24,E25,E4/2,E17,E6/2,E6*1000,$E$21) -> 3557.390406 | F26: =hertz(F22,F23,F24,F25,F4,F17,F6,100000,$E$21) -> 9319.185274 | G26: 10242.85828 | H26: 11134.68577 | I26: 11995.08117 | J26: 12824.76367 | K26: 13624.64539 | L26: 14395.75447 | M26: 15139.18215 | N26: 15856.04639 | O26: 16547.46675
B28: koruny | C28: E satelit | D28: [MPa] | E28: 206000 | F28: =E28 -> 206000 | G28: 206000 | H28: 206000 | I28: 206000 | J28: 206000 | K28: 206000 | L28: 206000 | M28: 206000 | N28: 206000 | O28: 206000
C29: E koruna | D29: [MPa] | E29: 206000 | F29: =E29 -> 206000 | G29: 206000 | H29: 206000 | I29: 206000 | J29: 206000 | K29: 206000 | L29: 206000 | M29: 206000 | N29: 206000 | O29: 206000
C30: poisson satelit | D30: [-] | E30: 0.3 | F30: =E30 -> 0.3 | G30: 0.3 | H30: 0.3 | I30: 0.3 | J30: 0.3 | K30: 0.3 | L30: 0.3 | M30: 0.3 | N30: 0.3 | O30: 0.3
C31: poisson koruna | D31: [-] | E31: 0.3 | F31: =E31 -> 0.3 | G31: 0.3 | H31: 0.3 | I31: 0.3 | J31: 0.3 | K31: 0.3 | L31: 0.3 | M31: 0.3 | N31: 0.3 | O31: 0.3
C32: maximální přítlačná síla | D32: [N] | E32: =hertz(E29,E28,E31,E30,E5/2,E17,E7/2,E7/2*1000,$E$21) -> 20556.10514 | F32: =hertz(F29,F28,F31,F30,F5/2,F17,F7/2,F7/2*1000,$E$21) -> 18811.2508 | G32: 17152.65811 | H32: 15576.52217 | I32: 14079.42615 | J32: 12658.32004 | K32: 11310.5058 | L32: 10033.62973 | M32: 8825.682842 | N32: 7685.011233 | O32: 6610.339515
C33: změna přítlačné síli v průběhhu | E33: 2 | F33: 0 - konatantní síla, 1 - maximální kontaktní tlaky, 2 - linearizováná síla
B34: (síla na ax. ložisko) | C34: skutečná síla linearizace | D34: [N] | E34: =MIN($E$26:$O$26,$E$32:$O$32) -> 3557.390406 | F34: =($O$34-$E$34)/10+E34 -> 3862.685316 | G34: =($O$34-$E$34)/10+F34 -> 4167.980227 | H34: 4473.275138 | I34: 4778.570049 | J34: 5083.86496 | K34: 5389.159871 | L34: 5694.454782 | M34: 5999.749693 | N34: 6305.044604 | O34: =MIN(O26,O32) -> 6610.339515
C35: výsledná maximální axiální síla síla | D35: [N] | E35: =IF($E$33=0,MIN($E$26:$O$26,$E$32:$O$32),IF($E$33=2,E34,MIN(E26,E32))) -> 3557.390406 | F35: =IF($E$33=0,MIN($E$26:$O$26,$E$32:$O$32),IF($E$33=2,F34,MIN(F26,F32))) -> 3862.685316 | G35: 4167.980227 | H35: 4473.275138 | I35: 4778.570049 | J35: 5083.86496 | K35: 5389.159871 | L35: 5694.454782 | M35: 5999.749693 | N35: 6305.044604 | O35: 6610.339515
A36: výsledený tlak v doteku | C36: central | D36: [MPa] | E36: =hertz2(E22,E23,E24,E25,E4/2,E17,E6/2,E6*1000,E35) -> 1555 | F36: =hertz2(F22,F23,F24,F25,F4/2,F17,F6/2,F6*1000,F35) -> 1549.198516 | G36: 1537.560975 | H36: 1529.031435 | I36: 1522.903662 | J36: 1518.667501 | K36: 1515.944923 | L36: 1514.449693 | M36: 1513.961037 | N36: 1514.305925 | O36: 1515.34683
C37: koruna | D37: [MPa] | E37: =hertz2(E28,E29,E30,E31,E5/2,E18,E7/2,E7*1000,E35) -> 866.0674384 | F37: =hertz2(F28,F29,F30,F31,F5/2,F18,F7/2,F7*1000,F35) -> 916.8575461 | G37: 969.7609655 | H37: 1025.271554 | I37: 1083.952969 | J37: 1146.468945 | K37: 1213.622821 | L37: 1286.411992 | M37: 1366.10616 | N37: 1454.36428 | O37: =hertz2(O28,O29,O30,O31,O5/2,O18,O7/2,O7*1000,O35) -> 1553.416372
C38: hlavní polosa elipsy doteku planeta-satelit | D38: [mm] | E38: =elipsaa(E22,E23,E24,E25,E4/2,E17,E6/2,E6*10000,E35) -> 2.349526056 | F38: =elipsaa(F22,F23,F24,F25,F4/2,F17,F6/2,F6*10000,F35) -> 2.381880114 | G38: 2.420295326 | H38: 2.457369054 | I38: 2.49318904 | J38: 2.52784236 | K38: 2.561411619 | L38: 2.593973414 | M38: 2.625597928 | N38: 2.656349074 | O38: 2.686284895
C39: vedlejší polosa elipsy doteku planeta-satelit | D39: [mm] | E39: =elipsab(E22,E23,E24,E25,E4/2,E17,E6/2,E6*1000,E35) -> 0.4657618294 | F39: =elipsab(F22,F23,F24,F25,F4/2,F17,F6/2,F6*1000,F35) -> 0.5006362102 | G39: 0.5355715292 | H39: 0.5692141053 | I39: 0.6016727217 | J39: 0.6330403432 | K39: 0.663397569 | L39: 0.6928150905 | M39: 0.7213554989 | N39: 0.7490746508 | O39: 0.7760227252
C40: hlavní polosa elipsy doteku satelit-koruna | D40: [mm] | E40: =elipsaa(E28,E29,E30,E31,E5/2,E18,E7/2,E7*1000,E35) -> 1.952502317 | F40: =elipsaa(F28,F29,F30,F31,F5/2,F18,F7/2,F7*1000,F35) -> 2.02835054 | G40: 2.103180296 | H40: 2.177405103 | I40: 2.251416723 | J40: 2.325604018 | K40: 2.400371272 | L40: 2.476158293 | M40: 2.553464904 | N40: 2.63288358 | O40: 2.715146125
C41: vedlejší polosa elipsy doteku satelit-koruna | D41: [mm] | E41: =elipsab(E28,E29,E30,E31,E5/2,E18,E7/2,E7*1000,E35) -> 1.004453911 | F41: =elipsab(F28,F29,F30,F31,F5/2,F18,F7/2,F7*1000,F35) -> 0.9917134561 | G41: 0.9757222301 | H41: 0.9567296205 | I41: 0.9349177019 | J41: 0.9104114166 | K41: 0.8832846145 | L41: 0.8535626788 | M41: 0.821221938 | N41: 0.7861855565 | O41: 0.7483149701
C42: axiální síla | D42: [N] | E42: =E35*SIN(15*PI()/180)*$E$49 -> 3682.881551 | F42: =F35*SIN(15*PI()/180)*$E$49 -> 3998.946101 | G42: 4315.01065 | H42: 4631.075199 | I42: 4947.139749 | J42: 5263.204298 | K42: 5579.268847 | L42: 5895.333397 | M42: 6211.397946 | N42: 6527.462495 | O42: 6843.527045
B43: Součinitel tření | C43: teplota oleje | E43: 50
C44: spinová rychlost planeta - satelit | D44: [rad/s] | E44: =4*PI()*E12*SIN(15/180*PI())/60 -> 78.60005437 | F44: =4*PI()*F12*SIN(15/180*PI())/60 -> 78.60005437 | G44: 78.60005437 | H44: 78.60005437 | I44: 78.60005437 | J44: 78.60005437 | K44: 78.60005437 | L44: 78.60005437 | M44: 78.60005437 | N44: 78.60005437 | O44: 78.60005437
C45: spinová rychlost koruna - satelit | D45: [rad/s] | E45: =4*PI()*E13*SIN(15/180*PI())/60 -> 98.25006796 | F45: =4*PI()*F13*SIN(15/180*PI())/60 -> 83.35528365 | G45: 71.30243433 | H45: 61.34899267 | I45: 52.99038 | J45: 45.87172047 | K45: 39.73615572 | L45: 34.39318988 | M45: 29.69855792 | N45: 25.54100337 | O45: 21.83334844
C46: součinitel tření planeta - satelit | D46: [-] | E46: =treni50(E36,$E$43,E15,E38,E39,E44) -> 0.09347897228 | F46: =treni50(F36,$E$43,F15,F38,F39,F44) -> 0.09315245478 | G46: 0.09270929769 | H46: 0.09231931651 | I46: 0.09197316385 | J46: 0.09166357948 | K46: 0.09138483735 | L46: 0.0911323578 | M46: 0.0909024314 | N46: 0.0906920191 | O46: 0.09049860529
C47: součinitel tření koruna - satelit | D47: [-] | E47: =treni50(E37,$E$43,E16,E40,E41,E45) -> 0.07093217835 | F47: =treni50(F37,$E$43,F16,F40,F41,F45) -> 0.07480391827 | G47: 0.07830566427 | H47: 0.08152357731 | I47: 0.08452317994 | J47: 0.08735465564 | K47: 0.09005654564 | L47: 0.09265806852 | M47: 0.0951802039 | N47: 0.09763544658 | O47: 0.1000257371
B48: Koruticí momenty
C49: počet satelitů | D49: [-] | E49: 4
C50: moment central | D50: [Nmm] | E50: =E35*E46*E4/2000*$E$49*2 -> 232.7788394 | F50: 251.8730335 | G50: 270.4873638 | H50: 289.0787924 | I50: 307.6501443 | J50: 326.2036819 | K50: 344.7412488 | L50: 363.2643635 | M50: 381.7742845 | N50: 400.272058 | O50: 418.7585546
C51: moment koruna | D51: [Nmm] | E51: =E35*E47*ABS(E5)/2000*$E$49*2 -> 322.9868169 | F51: 369.8483158 | G51: 417.7618693 | H51: 466.7870612 | I51: 516.9919183 | J51: 568.4470693 | K51: 621.221276 | L51: 675.3755922 | M51: 730.9534709 | N51: 787.9626825 | O51: 846.3412258
C52: moment z koruny na central | D52: [Nmm] | E52: =E51/E11 -> 403.7335211 | F52: =F51/F11 -> 392.2237907 | G52: 378.9747792 | H52: 364.3371016 | I52: 348.5442654 | J52: 331.75098 | K52: 314.0576118 | L52: 295.5255078 | M52: 276.1863738 | N52: 256.0476286 | O52: 235.0947849
C53: moment maximální vstupní | D53: [Nmm] | E53: =MIN(E52,E50) -> 232.7788394 | F53: =MIN(F52,F50) -> 251.8730335 | G53: 270.4873638 | H53: 289.0787924 | I53: 307.6501443 | J53: 326.2036819 | K53: 314.0576118 | L53: 295.5255078 | M53: 276.1863738 | N53: 256.0476286 | O53: 235.0947849
C54: moment maximální výstupní | D54: [Nmm] | E54: =E53*E11 -> 186.2230715 | F54: =F53*F11 -> 237.50425 | G54: 298.171047 | H54: 370.3664528 | I54: 456.3341132 | J54: 558.9419117 | K54: 621.221276 | L54: 675.3755922 | M54: 730.9534709 | N54: 787.9626825 | O54: 846.3412258
C56: maximálni přenášený výkon | D56: [W] | E56: =E53*E12*2*PI()/60 -> 35345.98743 | F56: =F53*F12*2*PI()/60 -> 38245.31946 | G56: 41071.78722 | H56: 43894.7775 | I56: 46714.71927 | J56: 49531.95605 | K56: 47687.65249 | L56: 44873.67028 | M56: 41937.14567 | N56: 38879.20519 | O56: 35697.64905
A58: dovolený přenášený výkon pro otáčky | E58: =E12 -> 1450 | F58: je | G58: =MIN(E56:O56)/1000 -> 35.34598743 | H58: kW
A59: rozsah převodových poměrů | E59: =E11 -> 0.8 | F59: až | G59: =O11 -> 3.6
A60: rozsah výstupních otáček | E60: =O13 -> 402.7777778 | F60: až | G60: =E13 -> 1812.5
A61: max axiální síla | E61: =MAX(E35:O35)*SIN(15*PI()/180)*E49 -> 6843.527045 | F61: N
B67: Výpočty rozměrů a zatížení
Q69: Axiální ložisko | R69: d | S69: D | T69: h | U69: C [kN]
B70: ložisko axial | C70: síla na axiální ložisko | D70: [N] | E70: =E35*SIN(15*PI()/180)*$E$49 -> 3682.881551 | F70: 3998.946101 | G70: 4315.01065 | H70: 4631.075199 | I70: 4947.139749 | J70: 5263.204298 | K70: 5579.268847 | L70: 5895.333397 | M70: 6211.397946 | N70: 6527.462495 | O70: 6843.527045 | Q70: 51310 | R70: 50 | S70: 95 | T70: 31 | U70: 81.9
B71: 51310 | C71: maximální síla | D71: [N] | E71: =MAX(E70:O70) -> 6843.527045 | Q71: 51309 | R71: 45 | S71: 85 | T71: 28 | U71: 76.1
B72: 51309 | C72: životnost | D72: [h] | E72: 20000 | Q72: 51406 | R72: 30 | S72: 70 | T72: 28 | U72: 70.2
B73: 51406 | C73: otáčky | D73: [ot/min] | E73: =E12 -> 1450 | Q73: 51407 | R73: 35 | S73: 80 | T73: 32 | U73: 76.1
B74: 51407 | C74: počet otáček v mil | D74: [-] | E74: =E72*E73*60/10^6 -> 1740
C75: únosnost | D75: [N] | E75: =E71*E74^(1/3) -> 82311.98416
B77: Výpočet satelitu | C77: průměr v místě ložiska | D77: [mm] | E77: 94.34
C78: převod | D78: [-] | E78: =E11 -> 0.8 | F78: 0.9429522752 | G78: 1.102347418 | H78: 1.281195517 | I78: 1.483289125 | J78: 1.713475177 | K78: 1.97804878 | L78: 2.285337727 | M78: 2.646594982 | N78: 3.07740668 | O78: 3.6
C79: Vzdálenost planetového a korunového kola Lkol | D79: [mm] | E79: =(E7-E6)/2/TAN(15*3.14159/180) -> 105.8767524 | F79: 86.45982286 | G79: 67.04289329 | H79: 47.62596373 | I79: 28.20903416 | J79: 8.792104588 | K79: -10.62482498 | L79: -30.04175455 | M79: -49.45868412 | N79: -68.87561369 | O79: -88.29254326
C80: Moment od radiální složky Mor | D80: [Nmm] | E80: =E79*E35*COS(15/180*3.14159) -> 363811.0996 | F80: 322587.4548 | G80: 269912.0056 | H80: 205784.7521 | I80: 130205.6942 | J80: 43174.83193 | K80: -55307.83467 | L80: -165242.3056 | M80: -286628.5809 | N80: -419466.6606 | O80: -563756.5446
C81: Mometn od axiální složky Moa | D81: [Nmm] | E81: =E35*SIN(15*3.14159/180)*(E7-E6)/2 -> 26120.41553 | F81: 23160.69623 | G81: 19378.77583 | H81: 14774.65432 | I81: 9348.331704 | J81: 3099.807982 | K81: -3970.916845 | L81: -11863.84278 | M81: -20578.96982 | N81: -30116.29796 | O81: -40475.82721
C82: Moment od obvodových sil Moo | D82: [Nmm] | E82: =$G$58*1000000*60/4/3.14159/TAN(15/180*3.14159)/$E$49/E12*(($E$77-E6)/E4+E11*($E$77-E7)/ABS(E5)) -> 29383.94911 | F82: 27503.57056 | G82: 26149.60338 | H82: 25418.41427 | I82: 25431.42018 | J82: 26343.7937 | K82: 28357.06994 | L82: 31737.85961 | M82: 36846.42163 | N82: 44181.73935 | O82: 54455.40647
C83: Výsledný ohybový moment Mo1 | D83: [Nmm] | E83: =((E80+E81)^2+E82^2)^0.5 -> 391037.0864 | F83: =((F80+F81)^2+F82^2)^0.5 -> 346840.3528 | G83: 290470.236 | H83: 222019.2504 | I83: 141852.3291 | J83: 53247.88978 | K83: 65712.20432 | L83: 179927.4285 | M83: 309409.3373 | N83: 451748.6721 | O83: 606681.2593
C85: D | D85: [mm] | E85: 41 | F85: 41 | G85: 41 | H85: 41 | I85: 41 | J85: 41 | K85: 41 | L85: 41 | M85: 41 | N85: 41 | O85: 41
C86: d | D86: [mm] | E86: 25.5 | F86: 25.5 | G86: 25.5 | H86: 25.5 | I86: 25.5 | J86: 25.5 | K86: 25.5 | L86: 25.5 | M86: 25.5 | N86: 25.5 | O86: 25.5
C87: napětí | D87: [MPa] | E87: =32*E83*E85/(E85^4-E86^4)/3.14159 -> 67.96105075 | F87: =32*F83*F85/(F85^4-F86^4)/3.14159 -> 60.27979349 | G87: 50.48283943 | H87: 38.5862673 | I87: 24.65350135 | J87: 9.254320537 | K87: 11.42058032 | L87: 31.27083728 | M87: 53.77439738 | N87: 78.51253882 | O87: 105.4393491
C88: počet cyklů v milionech | D88: [-] | E88: =20000*60*(0.25*E14+0.5*H14+0.25*O14)/10^6 -> 5065.266978
B90: vyrovnávání satelitu | C90: radiální síla na 1 satelit | D90: [N] | E90: =E35*COS(15/180*3.14159) -> 3436.17547 | F90: 3731.067727 | G90: 4025.959984 | H90: 4320.85224 | I90: 4615.744497 | J90: 4910.636754 | K90: 5205.52901 | L90: 5500.421267 | M90: 5795.313523 | N90: 6090.20578 | O90: 6385.098037
C91: klopný moment na satelit | D91: [Nmm] | E91: =E90*194 -> 666618.0413 | F91: =F90*194 -> 723827.1391 | G91: 781036.2368 | H91: 838245.3346 | I91: 895454.4324 | J91: 952663.5302 | K91: 1009872.628 | L91: 1067081.726 | M91: 1124290.824 | N91: 1181499.921 | O91: 1238709.019
C92: síla na vyrovnávací ozubení | D92: [N] | E92: =E91/336 -> 1983.982266 | F92: =F91/336 -> 2154.247438 | G92: 2324.51261 | H92: 2494.777782 | I92: 2665.042954 | J92: 2835.308126 | K92: 3005.573298 | L92: 3175.83847 | M92: 3346.103642 | N92: 3516.368814 | O92: 3686.633985
C93: moment | D93: [Nmm] | E93: =E92*36.25/2 -> 35959.67857 | F93: 39045.73481 | G93: 42131.79105 | H93: 45217.84729 | I93: 48303.90353 | J93: 51389.95978 | K93: 54476.01602 | L93: 57562.07226 | M93: 60648.1285 | N93: 63734.18474 | O93: =O92*36.25/2 -> 66820.24099
C94: únosnost | D94: [Nmm] | E94: 9600 | F94: 9600 | G94: 9600 | H94: 9600 | I94: 9600 | J94: 9600 | K94: 9600 | L94: 9600 | M94: 9600 | N94: 9600 | O94: 9600
C95: bezpečnost | D95: [-] | E95: =E94/E93 -> 0.2669656789 | F95: 0.2458655228 | G95: 0.2278564419 | H95: 0.2123055513 | I95: 0.198741702 | J95: 0.186806918 | K95: 0.1762243406 | L95: 0.1667764836 | M95: 0.1582901276 | N95: 0.1506256029 | O95: =O94/O93 -> 0.1436690419
